fUST/lending_fUST_20250330
["ID","MTS","AMOUNT","RATE_DAILY","PERIOD"]
[356832205,1743291033057,-967.9203002,0.00026847,2]
[356832206,1743291033067,-967.9203002,0.00026847,2]
[356832207,1743291033076,-967.9203002,0.00026847,2]
[356832208,1743291033086,-967.9203002,0.00026847,2]
[356832209,1743291033095,-1789.51409785,0.00026847,2]
[356832210,1743291033106,-1789.51409785,0.00026847,2]
[356832211,1743291033115,-1789.51409785,0.00026847,2]
[356832212,1743291033125,-1789.51409785,0.00026847,2]
[356832213,1743291033134,-1789.51409785,0.00026847,2]
[356832214,1743291033144,-1789.51409785,0.00026847,2]
[356832215,1743291033153,-1789.51409785,0.00026847,2]
[356832216,1743291033163,-1789.51409785,0.00026847,2]
[356832217,1743291033172,-1789.51409785,0.00026847,2]
[356832218,1743291033182,-1789.51409785,0.00026847,2]
[356832219,1743291033192,-1789.51409785,0.00026847,2]
[356832220,1743291033202,-1789.51409785,0.00026847,2]
[356832221,1743291033211,-1789.51409785,0.00026847,2]
[356832222,1743291033221,-1789.51409785,0.00026847,2]
[356832223,1743291033231,-1789.51409785,0.00026847,2]
[356832224,1743291033240,-1789.51409785,0.00026847,2]
[356832225,1743291033250,-1789.51409785,0.00026847,2]
[356832226,1743291033259,-1789.51409785,0.00026847,2]
[356832227,1743291033269,-1789.51409785,0.00026847,2]
[356832228,1743291033278,-1789.51409785,0.00026847,2]
[356832229,1743291033288,-1789.51409785,0.00026847,2]
[356832230,1743291033298,-1789.51409785,0.00026847,2]
[356832231,1743291033307,-1789.51409785,0.00026847,2]
[356832232,1743291033317,-1789.51409785,0.00026847,2]
[356832233,1743291033326,-1789.51409785,0.00026847,2]
[356832234,1743291033336,-1789.51409785,0.00026847,2]
[356832235,1743291033345,-1789.51409785,0.00026847,2]
[356832236,1743291033355,-1789.51409785,0.00026847,2]
[356832237,1743291033364,-1789.51409785,0.00026847,2]
[356832238,1743291033374,-1741.7937219,0.00026847,2]
[356832239,1743291033384,-1741.7937219,0.00026847,2]
[356832240,1743291033393,-1741.7937219,0.00026847,2]
[356832241,1743291033403,-1741.7937219,0.00026847,2]
[356832242,1743291033412,-1741.7937219,0.00026847,2]
[356832243,1743291033422,-1741.7937219,0.00026847,2]
[356832244,1743291033432,-1741.7937219,0.00026847,2]
[356832245,1743291033442,-1741.7937219,0.00026847,2]
[356832246,1743291033451,-1741.7937219,0.00026847,2]
[356832247,1743291033461,-1741.7937219,0.00026847,2]
[356832248,1743291033470,-1741.7937219,0.00026847,2]
[356832249,1743291033479,-1741.7937219,0.00026847,2]
[356832250,1743291033489,-1741.7937219,0.00026847,2]
[356832251,1743291033499,-1741.7937219,0.00026847,2]
[356832252,1743291033508,-1741.7937219,0.00026847,2]
[356832253,1743291033518,-18811.03141059,0.00026847,2]
[356832254,1743291033527,-17304.1459895,0.00026848,2]
[356832255,1743291033536,-418.66406265,0.00026848,2]
[356832256,1743291033546,-160.0,0.00026848,2]
[356832257,1743291033555,-170.40290173,0.00026857,2]
[356832258,1743291033564,-17304.1459895,0.00026863,2]
[356832259,1743291033574,-166.56729777,0.00026873,2]
[356832260,1743291033583,-597.78737736,0.00026873,2]
[356832261,1743291033592,-500.0,0.00026873,2]
[356832262,1743291033601,-500.0,0.00026873,2]
[356832263,1743291033611,-500.0,0.00026873,2]
[356832264,1743291033620,-500.0,0.00027397,5]
[356832265,1743291033629,-192.0,0.00027436,2]
[356832266,1743291033639,-420.0,0.00028137,2]
[356832267,1743291033648,-1846.9830937,0.00028731,3]
[356832268,1743291033658,-500.0,0.00028765,5]
[356832269,1743291033667,-500.0,0.00028765,5]
[356832270,1743291033677,-500.0,0.00028765,5]
[356832271,1743291033687,-501.17725434,0.00028765,2]
[356832272,1743291033696,-500.0,0.00028765,5]
[356832273,1743291033706,-500.0,0.00028765,5]
[356832274,1743291033716,-500.0,0.0002901,2]
[356832275,1743291033725,-500.0,0.0002901,5]
[356832276,1743291033735,-500.0,0.0002901,5]
[356832277,1743291033744,-500.0,0.0002901,5]
[356832278,1743291033753,-2500.0,0.00029108,3]
[356832279,1743291033762,-2500.0,0.00029116,3]
[356832280,1743291033771,-2500.0,0.00029125,3]
[356832281,1743291033781,-2500.0,0.00029134,3]
[356832282,1743291033790,-160.0,0.00029134,3]
[356832283,1743291033799,-418.47884548,0.00029134,3]
[356832284,1743291033809,-3714.66459054,0.00029134,3]
[356832285,1743291033818,-439.55258464,0.00029134,3]
[356832286,1743291033827,-1364.68500655,0.00029143,3]
[356832287,1743291033952,-22.8560985,0.00029143,3]
[356832292,1743291038316,-48.1868341,0.000259,6]
[356832293,1743291038383,-77.40943893,0.000259,6]
[356832295,1743291039010,-657.64175699,0.000259,6]
[356832300,1743291040609,-2533.49937638,0.000259,6]
[356832301,1743291040618,-3316.73740618,0.0002659,6]
[356832302,1743291040628,-3316.73740618,0.00027279,7]
[356832303,1743291040637,-3316.73740618,0.00027969,7]
[356832304,1743291040647,-3316.73740618,0.00028659,8]
[356832305,1743291040656,-1112.45889495,0.00029143,3]
[356832306,1743291040666,-2500.0,0.00029152,3]
[356832307,1743291040675,-2500.0,0.0002916,3]
[356832308,1743291040684,-17304.1459895,0.00029168,2]
[356832309,1743291040694,-2500.0,0.00029169,3]
[356832310,1743291040703,-2500.0,0.00029178,3]
[356832311,1743291040713,-1958.33846646,0.00029178,3]
[356832312,1743291040722,-500.0,0.00029187,5]
[356832313,1743291040732,-500.0,0.00029187,5]
[356832314,1743291040742,-3316.73740618,0.00029348,8]
[356832315,1743291040752,-1500.0,0.00029799,2]
[356832316,1743291040761,-160.0,0.00029799,2]
[356832317,1743291040771,-1166.58,0.0003,2]
[356832318,1743291040781,-232.0,0.0003,2]
[356832319,1743291040791,-1203.69032338,0.0003,2]
[356832320,1743291040801,-3316.73740618,0.00030038,9]
[356832321,1743291040811,-622.2,0.00030082,2]
[356832322,1743291040820,-19004.85251225,0.0003009,2]
[356832323,1743291040832,-569.77936835,0.0003009,2]
[356832327,1743291043679,-2050.23537925,0.0003009,2]
[356832333,1743291043993,-745.52826559,0.0003009,2]
[356832334,1743291047356,-6839.31374773,0.0003009,2]
[356832335,1743291047367,-674.25,0.0003009,2]
[356832336,1743291047447,-611.539813,0.0003009,2]
[356832337,1743291047496,-4519.94841129,0.0003009,2]
[356832338,1743291047673,-238.76935234,0.0003009,2]
[356832339,1743291047685,-7793.35482123,0.0003009,2]
[356832340,1743291047705,-6933.46233171,0.0003009,2]
[356832341,1743291047728,-88452.13391326,0.0003009,2]
[356832342,1743291047738,-198916.78838378,0.000301,2]
[356832343,1743291047763,-20670.32710519,0.000301,2]
[356832405,1743292034124,-374.63183573,0.00025982,2]
[356832409,1743292041099,-203.23908389,0.00025982,2]
[356832410,1743292079616,-172.63844085,0.00025696,2]
[356832411,1743292146098,-177.94392191,0.00024953,3]
[356832412,1743292146120,-306.00340133,0.00025696,2]
[356832418,1743292232829,-300.0,0.00025695,2]
[356832419,1743292232838,-5595.1906028,0.00025696,3]
[356832420,1743292232847,-6179.87319862,0.00025696,2]
[356832421,1743292232856,-31.78120398,0.00025982,2]
[356832422,1743292232865,-198.92664809,0.00026269,2]
[356832423,1743292232875,-973.5123686,0.00026369,4]
[356832424,1743292232884,-834.95724862,0.00026807,2]
[356832425,1743292232893,-549.79595345,0.00026838,2]
[356832426,1743292232902,-3088.63203877,0.000269,7]
[356832427,1743292232911,-500.0,0.000269,2]
[356832428,1743292232920,-500.0,0.00027397,5]
[356832429,1743292232929,-3088.63203871,0.00027555,7]
[356832430,1743292232938,-420.0,0.00027817,2]
[356832431,1743292232947,-3088.63203871,0.0002821,7]
[356832432,1743292232956,-3088.63203871,0.00028866,8]
[356832433,1743292232965,-500.0,0.00029234,5]
[356832434,1743292232973,-500.0,0.00029234,5]
[356832435,1743292232982,-500.0,0.00029234,5]
[356832436,1743292232991,-3088.63203871,0.00029521,8]
[356832437,1743292233000,-539.61898583,0.00029577,5]
[356832438,1743292233009,-500.0,0.00029577,2]
[356832439,1743292233019,-500.0,0.00029577,5]
[356832440,1743292233028,-500.0,0.00029577,5]
[356832441,1743292233038,-500.0,0.00029577,5]
[356832442,1743292233047,-500.0,0.0002961,5]
[356832443,1743292233056,-189.63016025,0.00029973,2]
[356832444,1743292233066,-500.0,0.00029973,5]
[356832445,1743292233075,-500.0,0.00029973,5]
[356832446,1743292233084,-500.0,0.00029973,5]
[356832447,1743292233093,-500.0,0.00029973,5]
[356832448,1743292233102,-151.0,0.00029982,2]
[356832449,1743292233112,-622.2,0.00029982,2]
[356832450,1743292233121,-62294.9255624,0.0002999,2]
[356832451,1743292233130,-1049.92,0.0003,2]
[356832452,1743292233140,-300.0,0.0003,14]
[356832453,1743292233149,-79128.42399928,0.0003,2]
[356832454,1743292233161,-290871.57600072,0.0003,2]
[356832455,1743292233171,-1570.39112669,0.0003,20]
[356832456,1743292233180,-206.0,0.0003,2]
[356832457,1743292233189,-645.2214,0.00030037,2]
[356832458,1743292233199,-218.51429422,0.00030047,2]
[356832459,1743292233208,-669.0945918,0.00030092,2]
[356832460,1743292233217,-587.0,0.00030113,2]
[356832461,1743292233227,-693.8510917,0.00030147,2]
[356832462,1743292233236,-3088.63203871,0.00030176,9]
[356832463,1743292233246,-93442.3883436,0.0003019,2]
[356832464,1743292233255,-4615.59098868,0.000302,4]
[356832465,1743292233264,-312650.01432382,0.000302,14]
[356832489,1743292238359,-500.0,0.00026806,2]
[356832491,1743292238370,-500.0,0.00026806,2]
[356832492,1743292238379,-500.0,0.00026806,2]
[356832494,1743292238389,-500.0,0.00026806,2]
[356832496,1743292238398,-556.78560919,0.00026806,2]
[356832497,1743292238410,-500.0,0.00026806,2]
[356832498,1743292238420,-249.99999999,0.00026806,2]
[356832499,1743292238429,-500.0,0.00026806,2]
[356832500,1743292238439,-500.0,0.00026806,2]
[356832501,1743292238448,-500.0,0.00026806,2]
[356832502,1743292238458,-500.0,0.00026806,2]
[356832503,1743292238467,-500.0,0.00026806,2]
[356832504,1743292238476,-500.0,0.00026806,2]
[356832505,1743292238485,-500.0,0.00026806,2]
[356832506,1743292238495,-500.0,0.00026806,2]
[356832507,1743292238505,-500.0,0.00026806,2]
[356832508,1743292238515,-500.0,0.00026806,2]
[356832509,1743292238524,-766.56174782,0.000302,14]
[356832510,1743292238583,-75387.11930703,0.000302,14]
[356832513,1743292246846,-524.27496881,0.00026738,2]
[356832514,1743292246857,-97.01813279,0.00026738,2]
[356832515,1743292246867,-4570.86198445,0.000302,14]
[356832516,1743292246878,-12141.14957164,0.000302,14]
[356832524,1743293233142,-656.9402007,0.00024525,2]
[356832526,1743293233180,-110.98492627,0.000246,2]
[356832530,1743293246162,-230.02505342,0.000246,2]
[356832531,1743293365132,-574.82267563,0.0002453,2]
[356832532,1743293365159,-1370.0480633,0.000246,2]
[356832538,1743293432869,-1288.94195701,0.000246,2]
[356832539,1743293432879,-3000.0,0.0002461,2]
[356832540,1743293432889,-622.2,0.0002461,2]
[356832541,1743293432899,-3000.0,0.0002462,2]
[356832543,1743293432908,-300.0,0.00024622,2]
[356832545,1743293432918,-500.0,0.00024622,2]
[356832547,1743293432927,-500.0,0.00024622,2]
[356832548,1743293432937,-561.43127155,0.00024622,2]
[356832549,1743293432947,-500.0,0.00024622,2]
[356832550,1743293432956,-500.0,0.00024622,2]
[356832551,1743293432966,-226.68524018,0.00024622,2]
[356832552,1743293432975,-500.0,0.00024622,2]
[356832553,1743293432986,-500.0,0.00024622,2]
[356832554,1743293432995,-500.0,0.00024622,2]
[356832555,1743293433004,-300.0,0.00024622,2]
[356832556,1743293433014,-500.0,0.00024622,2]
[356832557,1743293433023,-500.0,0.00024622,2]
[356832558,1743293433033,-500.0,0.00024622,2]
[356832559,1743293433043,-500.0,0.00024622,2]
[356832560,1743293433052,-500.0,0.00024622,2]
[356832561,1743293433062,-500.0,0.00024622,2]
[356832562,1743293433072,-500.0,0.00024622,2]
[356832563,1743293433081,-500.0,0.00024622,2]
[356832564,1743293433091,-500.0,0.00024622,2]
[356832565,1743293433101,-500.0,0.00024622,2]
[356832566,1743293433112,-500.0,0.00024622,2]
[356832567,1743293433122,-500.0,0.00024622,2]
[356832568,1743293433132,-500.0,0.00024622,2]
[356832569,1743293433142,-500.0,0.00024622,2]
[356832570,1743293433152,-500.0,0.00024622,2]
[356832571,1743293433163,-3000.0,0.0002463,2]
[356832572,1743293433172,-3343.2027399,0.0002463,2]
[356832573,1743293433182,-3000.0,0.0002464,2]
[356832574,1743293433191,-3000.0,0.0002465,2]
[356832575,1743293433201,-3000.0,0.0002466,2]
[356832576,1743293433211,-645.2214,0.00024665,2]
[356832577,1743293433220,-3000.0,0.0002467,2]
[356832578,1743293433229,-500.0,0.00024672,2]
[356832579,1743293433240,-543.60753323,0.00024672,2]
[356832580,1743293433249,-500.0,0.00024673,2]
[356832581,1743293433258,-500.0,0.00024673,2]
[356832582,1743293433267,-500.0,0.00024673,2]
[356832583,1743293433277,-500.0,0.00024673,2]
[356832584,1743293433286,-500.0,0.00024673,2]
[356832585,1743293433295,-500.0,0.00024673,2]
[356832586,1743293433305,-3000.0,0.0002468,2]
[356832587,1743293433315,-3000.0,0.0002469,2]
[356832588,1743293433325,-3000.0,0.000247,2]
[356832589,1743293433334,-3000.0,0.0002471,2]
[356832590,1743293433343,-152.54882241,0.0002471,2]
[356832591,1743293433352,-3000.0,0.0002472,2]
[356832592,1743293433361,-669.0945918,0.0002472,2]
[356832593,1743293433372,-3000.0,0.0002473,2]
[356832594,1743293433381,-3000.0,0.0002474,2]
[356832595,1743293433391,-500.0,0.0002474,2]
[356832596,1743293433401,-500.0,0.0002474,2]
[356832597,1743293433410,-3000.0,0.0002475,2]
[356832598,1743293433420,-3000.0,0.0002476,2]
[356832599,1743293433430,-300.78806985,0.0002476,2]
[356832600,1743293433439,-3000.0,0.0002477,2]
[356832601,1743293433448,-500.0,0.00024773,2]
[356832602,1743293433457,-504.00547309,0.00024773,2]
[356832603,1743293433467,-1349.29858329,0.00024775,2]
[356832604,1743293433476,-3000.0,0.0002478,2]
[356832605,1743293433486,-1007.17382146,0.00024785,2]
[356832606,1743293433495,-3000.0,0.0002479,2]
[356832607,1743293433504,-3000.0,0.000248,2]
[356832608,1743293433513,-3000.0,0.0002481,2]
[356832609,1743293433523,-3000.0,0.0002482,2]
[356832610,1743293433532,-3000.0,0.0002483,2]
[356832611,1743293433541,-5983.297913,0.0002484,2]
[356832612,1743293433551,-3858.18292966,0.000249,2]
[356832613,1743293433561,-2470.9056312,0.000259,6]
[356832614,1743293433571,-152.54882239,0.00026005,2]
[356832615,1743293433580,-2470.90563096,0.00026624,6]
[356832616,1743293433590,-420.0,0.00026684,2]
[356832617,1743293433600,-172.63844085,0.00026705,30]
[356832618,1743293433609,-574.8226756,0.00027154,2]
[356832619,1743293433619,-152.54882239,0.000273,2]
[356832620,1743293433628,-2470.90563096,0.00027348,7]
[356832621,1743293433638,-500.0,0.00027397,5]
[356832622,1743293433647,-500.0,0.00027397,5]
[356832623,1743293433657,-2470.90563096,0.00028072,7]
[356832624,1743293433667,-500.0,0.00028158,5]
[356832625,1743293433676,-500.0,0.00028158,5]
[356832626,1743293433685,-500.0,0.00028158,5]
[356832627,1743293433696,-152.54882239,0.00028594,2]
[356832628,1743293433706,-2470.90563096,0.00028797,8]
[356832629,1743293433715,-587.0,0.00028919,2]
[356832630,1743293433725,-2470.90563096,0.00029521,8]
[356832631,1743293433735,-574.8226756,0.00029779,2]
[356832632,1743293433744,-1694.73822251,0.00029868,3]
[356832633,1743293433753,-23104.18592743,0.0002988,2]
[356832652,1743293441059,-500.0,0.00024622,2]
[356832653,1743293441069,-852.64554896,0.0002988,2]
[356832654,1743293441081,-6908.63196091,0.0002988,2]
[356832655,1743293441091,-152.54882239,0.00029889,2]
[356832656,1743293441100,-2958.95851273,0.0002989,2]
[356832657,1743293441112,-929.06,0.0002989,2]
[356832658,1743293441124,-3761.97305516,0.0002989,2]
[356832665,1743293443826,-43600.0,0.0002989,2]
[356832666,1743293443839,-2129.49859107,0.0002989,2]
[356832667,1743293443850,-459.32484845,0.0002989,2]
[356832673,1743293446630,-285.98770573,0.0002989,2]
[356832674,1743293446688,-996.74829307,0.0002989,2]
[356832675,1743293446702,-30644.60623265,0.0002989,2]
[356832679,1743294271171,174.7130108,0.00013699,2]
[356832684,1743294437109,-194.0,0.00023,2]
[356832685,1743294437139,-168.72,0.00024607,2]
[356832686,1743294437162,-300.0,0.00024613,2]
[356832687,1743294437184,-82.71314668,0.00024614,2]
[356832689,1743294442101,-287.60250534,0.00024614,2]
[356832691,1743294476065,-196.18106805,0.00018,2]
[356832693,1743294485977,-186.37629481,0.00017999,2]
[356832704,1743294512565,-169.02710626,0.000176,2]
[356832705,1743294513052,-169.02710626,0.000176,2]
[356832706,1743294517484,-182.6157198,0.000176,2]
[356832709,1743294543136,-183.72625204,0.000176,2]
[356832710,1743294549087,-1001.62617761,0.000176,2]
[356832711,1743294549109,-300.0,0.00017998,2]
[356832712,1743294549130,-500.0,0.00017999,2]
[356832713,1743294549150,-130.66612559,0.00017999,2]
[356832714,1743294550074,-99.85914767,0.00017999,2]
[356832715,1743294550098,-189.46505481,0.00017999,2]
[356832716,1743294550615,-65.77264352,0.00017999,2]
[356832717,1743294550640,-500.0,0.00017999,2]
[356832718,1743294550666,-500.0,0.00017999,2]
[356832719,1743294550690,-500.0,0.00017999,2]
[356832720,1743294550712,-500.0,0.00017999,2]
[356832721,1743294550736,-500.0,0.00017999,2]
[356832722,1743294550760,-500.0,0.00017999,2]
[356832723,1743294550782,-500.0,0.00017999,2]
[356832724,1743294550805,-500.0,0.00017999,2]
[356832725,1743294550829,-500.0,0.00017999,2]
[356832726,1743294550852,-500.0,0.00017999,2]
[356832727,1743294550875,-500.0,0.00017999,2]
[356832728,1743294550903,-500.0,0.00017999,2]
[356832729,1743294550926,-500.0,0.00017999,2]
[356832730,1743294550949,-500.0,0.00017999,2]
[356832731,1743294550972,-500.0,0.00017999,2]
[356832732,1743294550995,-500.0,0.00017999,2]
[356832733,1743294551018,-500.0,0.00017999,2]
[356832734,1743294551041,-500.0,0.00017999,2]
[356832735,1743294551065,-500.0,0.00017999,2]
[356832736,1743294551088,-447.54459924,0.00017999,2]
[356832737,1743294551111,-500.0,0.00017999,2]
[356832738,1743294551134,-500.0,0.00017999,2]
[356832739,1743294551157,-500.0,0.00017999,2]
[356832740,1743294551181,-500.0,0.00017999,2]
[356832741,1743294551203,-182.6157198,0.00017999,2]
[356832742,1743294551229,-500.0,0.00017999,2]
[356832743,1743294551252,-500.0,0.00017999,2]
[356832744,1743294551279,-500.0,0.00017999,2]
[356832745,1743294551303,-500.0,0.00017999,2]
[356832746,1743294551327,-500.0,0.00017999,2]
[356832747,1743294551352,-500.0,0.00017999,2]
[356832748,1743294551375,-500.0,0.00017999,2]
[356832749,1743294551398,-500.0,0.00017999,2]
[356832750,1743294551421,-500.0,0.00017999,2]
[356832751,1743294551444,-500.0,0.00017999,2]
[356832752,1743294551466,-526.56296125,0.00017999,2]
[356832753,1743294551489,-500.0,0.00017999,2]
[356832754,1743294551513,-143235.27713509,0.00018,2]
[356832755,1743294555092,-11396.31287102,0.00018,2]
[356832756,1743294555115,-420.0,0.00019638,2]
[356832757,1743294555137,-152.0,0.00019785,2]
[356832758,1743294555158,-356.56849197,0.0002,2]
[356832759,1743294555179,-192.0,0.0002023,2]
[356832760,1743294555200,-265.56723255,0.00021,2]
[356832761,1743294555222,-587.0,0.00021427,2]
[356832762,1743294555243,-347.18975351,0.00022,2]
[356832763,1743294555264,-836.20464454,0.00022,2]
[356832764,1743294555288,-175.28725544,0.00023,2]
[356832765,1743294555310,-700.34895226,0.00023379,2]
[356832766,1743294557174,-122.65104774,0.00023379,2]
[356832767,1743294557197,-1806.85495513,0.000238,4]
[356832769,1743294563102,-371.96976531,0.000238,4]
[356832770,1743294569119,-74.05230639,0.000238,4]
[356832771,1743294569142,-2252.87702654,0.000238,4]
[356832772,1743294569164,-2252.87702654,0.000238,4]
[356832773,1743294569187,-2252.87702654,0.000238,4]
[356832774,1743294569209,-2252.87702654,0.000238,4]
[356832775,1743294569232,-2252.87702654,0.00024383,5]
[356832776,1743294569253,-277.70578065,0.00024614,2]
[356832777,1743294569277,-245.42758156,0.00024614,2]
[356832778,1743294571077,-589.87393969,0.00024614,2]
[356832779,1743294571098,-500.0,0.00024673,2]
[356832780,1743294571118,-51.03454199,0.00024673,2]
[356832794,1743294631872,-448.96545801,0.00024673,2]
[356832795,1743294631881,-319.28614569,0.000247,2]
[356832796,1743294631892,-180.71385431,0.000247,2]
[356832797,1743294631901,-500.0,0.000247,2]
[356832798,1743294631911,-500.0,0.000247,2]
[356832799,1743294631919,-359.26417225,0.00024719,2]
[356832800,1743294631928,-300.0,0.00024789,2]
[356832801,1743294631937,-562.07582316,0.00024789,2]
[356832802,1743294631946,-25113.47795638,0.0002479,2]
[356832803,1743294632059,-352.02252764,0.0002479,2]
[356832804,1743294632071,-64646.66076776,0.0002479,2]
[356832805,1743294632080,-150.0,0.00024819,2]
[356832806,1743294632089,-11804.4178146,0.000249,2]
[356832807,1743294632098,-500.0,0.00024973,2]
[356832808,1743294632108,-500.0,0.00024973,2]
[356832809,1743294632117,-500.0,0.00024973,2]
[356832810,1743294632126,-500.0,0.00024973,2]
[356832811,1743294632136,-500.0,0.00024973,2]
[356832812,1743294632145,-500.0,0.00024973,2]
[356832813,1743294632155,-2589.75210906,0.00025,4]
[356832814,1743294632164,-7866.16176439,0.00025,2]
[356832815,1743294632173,-837.25277194,0.00025,2]
[356832816,1743294632182,-275512.24815677,0.00025,2]
[356832817,1743294632338,-80857.85019537,0.00025,2]
[356832819,1743294637701,-500.0,0.00024789,2]
[356832820,1743294637711,-500.0,0.00024789,2]
[356832821,1743294637721,-647.41075604,0.00024789,2]
[356832822,1743294637730,-9288.56857297,0.00025,2]
[356832824,1743294640226,-134341.33307389,0.00025,2]
[356832825,1743294640236,-2252.87702654,0.00025279,5]
[356832826,1743294640245,-151.81019483,0.000255,2]
[356832827,1743294640377,-210.00708761,0.000255,2]
[356832845,1743294643090,-87.18271756,0.000255,2]
[356832846,1743294643101,-515.65971797,0.00026,2]
[356832847,1743294643111,-6071.55412653,0.00026,30]
[356832848,1743294643122,-988.37273191,0.00026,30]
[356832849,1743294643134,-522.65191152,0.00026,30]
[356832859,1743294645879,-19216.87661756,0.00026,30]
[356832860,1743294645888,-19900.0,0.00026,2]
[356832861,1743294645898,-2252.87702654,0.00026176,6]
[356832862,1743294645907,-150.0,0.00026189,2]
[356832863,1743294645916,-420.0,0.00026861,2]
[356832864,1743294645926,-193.390421,0.00026898,2]
[356832865,1743294645940,-359.26417225,0.00026988,2]
[356832866,1743294645949,-754.89455395,0.00027,2]
[356832867,1743294645958,-3645.98937379,0.00027,2]
[356832868,1743294645968,-338.45167296,0.00027,2]
[356832869,1743294645977,-2252.87702654,0.00027072,7]
[356832870,1743294645987,-8233.72631053,0.000275,2]
[356832871,1743294645996,-150.0,0.00027559,2]
[356832872,1743294646006,-2252.87702654,0.00027969,7]
[356832873,1743294646015,-471.14322483,0.00028195,2]
[356832874,1743294646025,-1400.0,0.00028425,2]
[356832875,1743294646034,-500.0,0.00028667,5]
[356832876,1743294646044,-2252.87702654,0.00028866,8]
[356832877,1743294646053,-170.85705062,0.00028929,2]
[356832878,1743294646062,-23608.8356292,0.0002899,2]
[356832879,1743294646071,-150418.84142455,0.00029,2]
[356832880,1743294646081,-869.62474322,0.00029,2]
[356832881,1743294646091,-837.80383987,0.00029,2]
[356832882,1743294646100,-1008.90752554,0.00029,2]
[356832883,1743294646110,-587.0,0.00029105,2]
[356832884,1743294646119,-359.26417225,0.00029256,2]
[356832885,1743294646129,-160.0,0.00029702,2]
[356832886,1743294646138,-2252.87702654,0.00029762,8]
[356832887,1743294646148,-5902.20890729,0.0002977,2]
[356832888,1743294646158,-500.0,0.00029773,5]
[356832889,1743294646167,-500.0,0.00029773,5]
[356832890,1743294646176,-500.0,0.00029773,5]
[356832891,1743294646186,-500.0,0.00029773,5]
[356832892,1743294646195,-500.0,0.00029773,5]
[356832893,1743294646205,-500.0,0.00029773,5]
[356832894,1743294646214,-168.72,0.0002978,2]
[356832895,1743294646224,-47217.6712583,0.0002978,2]
[356832896,1743294646233,-370000.0,0.0002979,2]
[356832897,1743294646243,-150.0,0.00029862,2]
[356832898,1743294646253,-50.69503212,0.0002989,30]
[356832910,1743294811130,-197.08551895,0.00024789,2]
[356832917,1743295629132,-177.94392191,0.0002376,3]
[356832918,1743295629153,-154.0,0.00024,2]
[356832919,1743295629175,-160.0,0.0002478,2]
[356832920,1743295629196,-154.0,0.00025358,2]
[356832921,1743295629217,-260.90295604,0.00027341,2]
[356832925,1743295640145,-211.67542604,0.00027241,2]
[356832926,1743295646087,-109.3958538,0.00027241,2]
[356832927,1743295646110,-108.46973235,0.00027341,2]
[356832929,1743295762081,-300.0,0.00026386,2]
[356832930,1743295762102,-325.45017742,0.00026387,2]
[356832947,1743295833057,-160.0,0.00026383,2]
[356832948,1743295833067,-300.0,0.00026386,2]
[356832949,1743295833077,-24574.54982258,0.00026387,2]
[356832950,1743295833087,-1354.3065307,0.000269,7]
[356832951,1743295833096,-355.67108472,0.00027339,2]
[356832952,1743295833106,-1578.01443004,0.0002734,2]
[356832953,1743295833115,-500.0,0.00027397,5]
[356832954,1743295833124,-500.0,0.000274,5]
[356832955,1743295833134,-500.0,0.000274,5]
[356832956,1743295833143,-500.0,0.000274,5]
[356832957,1743295833152,-500.0,0.000274,5]
[356832958,1743295833161,-500.0,0.0002747,5]
[356832959,1743295833175,-500.0,0.0002747,5]
[356832960,1743295833185,-1354.30653055,0.00027555,7]
[356832961,1743295833194,-1354.30653055,0.0002821,7]
[356832962,1743295833204,-420.0,0.00028544,2]
[356832963,1743295833214,-1354.30653055,0.00028866,8]
[356832964,1743295833223,-500.0,0.00028984,5]
[356832965,1743295833233,-500.0,0.00028984,5]
[356832966,1743295833242,-169.86857173,0.00029086,5]
[356832967,1743295833564,-330.13142827,0.00029086,5]